fUST/lending_fUST_20240726
["ID","MTS","AMOUNT","RATE_DAILY","PERIOD"]
[333195411,1721934642771,-500.0,0.00013698,2]
[333195412,1721934642780,-500.0,0.00013698,2]
[333195413,1721934642790,-953.69,0.00013698,2]
[333195414,1721934642799,-500.0,0.00013698,2]
[333195415,1721934642809,-651.41,0.00013698,2]
[333195417,1721934642820,-500.0,0.00013698,2]
[333195418,1721934642831,-500.0,0.00013698,2]
[333195419,1721934642841,-500.0,0.00013698,2]
[333195420,1721934642850,-1017.06,0.00013698,2]
[333195421,1721934642863,-575.96483489,0.00013698,2]
[333195422,1721934642873,-500.0,0.00013698,2]
[333195423,1721934642883,-896.92,0.00013698,2]
[333195424,1721934642895,-500.0,0.00013698,2]
[333195425,1721934642905,-500.0,0.00013698,2]
[333195426,1721934642915,-501.47527301,0.00013698,2]
[333195427,1721934642924,-500.0,0.00013698,2]
[333195428,1721934642934,-500.0,0.00013698,2]
[333195429,1721934642945,-500.0,0.00013698,2]
[333195430,1721934642955,-500.0,0.00013698,2]
[333195431,1721934642966,-738.06,0.00013698,2]
[333195432,1721934642979,-500.0,0.00013698,2]
[333195433,1721934642990,-500.0,0.00013698,2]
[333195434,1721934643000,-1524.94,0.00013698,2]
[333195435,1721934643010,-500.0,0.00013698,2]
[333195436,1721934643022,-619.39231752,0.00013698,2]
[333195437,1721934643032,-537.5234073,0.00013698,2]
[333195440,1721934643043,-500.0,0.00013698,2]
[333195441,1721934643053,-500.0,0.00013698,2]
[333195443,1721934643065,-500.0,0.00013698,2]
[333195445,1721934643075,-500.0,0.00013698,2]
[333195446,1721934643087,-667.55,0.00013698,2]
[333195447,1721934643097,-579.40700129,0.00013698,2]
[333195448,1721934643107,-500.0,0.00013698,2]
[333195449,1721934643117,-889.56,0.00013698,2]
[333195451,1721934643127,-500.0,0.00013698,2]
[333195453,1721934643137,-500.0,0.00013698,2]
[333195455,1721934643147,-500.0,0.00013698,2]
[333195457,1721934643157,-825.32,0.00013698,2]
[333195459,1721934643167,-622.24557272,0.00013698,2]
[333195461,1721934643177,-500.0,0.00013698,2]
[333195463,1721934643187,-617.33,0.00013698,2]
[333195465,1721934643198,-602.36606478,0.00013698,2]
[333195468,1721934643208,-500.0,0.00013698,2]
[333195470,1721934643220,-604.47,0.00013698,2]
[333195471,1721934643230,-604.47,0.00013698,2]
[333195472,1721934643239,-604.47,0.00013698,2]
[333195473,1721934643249,-604.47,0.00013698,2]
[333195474,1721934643259,-604.47,0.00013698,2]
[333195475,1721934643268,-604.47,0.00013698,2]
[333195476,1721934643279,-604.47,0.00013698,2]
[333195477,1721934643290,-224.1136796,0.00013698,2]
[333195479,1721934643300,-604.47,0.00013698,2]
[333195480,1721934643310,-604.47,0.00013698,2]
[333195482,1721934643319,-604.47,0.00013698,2]
[333195484,1721934643330,-604.47,0.00013698,2]
[333195485,1721934643339,-604.47,0.00013698,2]
[333195486,1721934643350,-604.47,0.00013698,2]
[333195487,1721934643360,-604.47,0.00013698,2]
[333195488,1721934643371,-604.47,0.00013698,2]
[333195489,1721934643381,-604.47,0.00013698,2]
[333195491,1721934643390,-500.0,0.00013698,2]
[333195492,1721934643400,-854.29,0.00013698,2]
[333195493,1721934643410,-503.71708603,0.00013698,2]
[333195494,1721934643420,-502.31656906,0.00013698,2]
[333195495,1721934643429,-703.01,0.00013698,2]
[333195496,1721934643439,-524.52769654,0.00013698,2]
[333195497,1721934643452,-1343.16,0.00013698,2]
[333195498,1721934643462,-611.42,0.00013698,2]
[333195499,1721934643475,-500.0,0.00013698,2]
[333195500,1721934643485,-667.75,0.00013698,2]
[333195501,1721934643494,-1791.67,0.00013698,2]
[333195502,1721934643504,-500.0,0.00013698,2]
[333195503,1721934643515,-814.37,0.00013698,2]
[333195504,1721934643524,-500.0,0.00013698,2]
[333195505,1721934643535,-500.0,0.00013698,2]
[333195506,1721934643545,-500.0,0.00013698,2]
[333195507,1721934643555,-1633.12,0.00013698,2]
[333195508,1721934643565,-500.0,0.00013698,2]
[333195509,1721934643575,-1546.78,0.00013698,2]
[333195510,1721934643585,-500.0,0.00013698,2]
[333195511,1721934643594,-500.0,0.00013698,2]
[333195512,1721934643605,-811.68,0.00013698,2]
[333195513,1721934643615,-500.0,0.00013698,2]
[333195514,1721934643626,-500.0,0.00013698,2]
[333195515,1721934643636,-500.0,0.00013698,2]
[333195516,1721934643647,-500.0,0.00013698,2]
[333195517,1721934643657,-2178.99,0.00013698,2]
[333195518,1721934643667,-1439.58,0.00013698,2]
[333195519,1721934643676,-464.35473855,0.00013698,2]
[333195520,1721934643685,-2323.26,0.00013698,2]
[333195521,1721934643695,-566.79,0.00013698,2]
[333195522,1721934643705,-1234.15,0.00013698,2]
[333195523,1721934643715,-500.0,0.00013698,2]
[333195524,1721934643729,-500.0,0.00013698,2]
[333195525,1721934643740,-500.0,0.00013698,2]
[333195526,1721934643750,-500.0,0.00013698,2]
[333195527,1721934643761,-500.0,0.00013698,2]
[333195528,1721934643771,-500.0,0.00013698,2]
[333195529,1721934643782,-500.0,0.00013698,2]
[333195530,1721934643792,-500.0,0.00013698,2]
[333195531,1721934643803,-500.0,0.00013698,2]
[333195532,1721934643813,-500.0,0.00013698,2]
[333195533,1721934643823,-541.80887918,0.00013698,2]
[333195534,1721934643832,-699.59,0.00013698,2]
[333195535,1721934643842,-500.0,0.00013698,2]
[333195536,1721934643852,-500.0,0.00013698,2]
[333195537,1721934643862,-500.0,0.00013698,2]
[333195538,1721934643872,-500.0,0.00013698,2]
[333195539,1721934643883,-8241.2,0.00013698,2]
[333195540,1721934643897,-652.21,0.00013698,2]
[333195541,1721934643907,-1327.3,0.00013698,2]
[333195542,1721934643916,-500.0,0.00013698,2]
[333195543,1721934643926,-512.06726257,0.00013698,2]
[333195544,1721934643937,-1122.02,0.00013698,2]
[333195545,1721934643946,-500.0,0.00013698,2]
[333195546,1721934644091,-500.0,0.00013698,2]
[333195547,1721934644103,-3472.27,0.00013698,2]
[333195548,1721934644115,-639.06,0.00013698,2]
[333195549,1721934644125,-500.0,0.00013698,2]
[333195550,1721934644136,-500.0,0.00013698,2]
[333195551,1721934644145,-500.0,0.00013698,2]
[333195552,1721934644155,-503.88456331,0.00013698,2]
[333195553,1721934644164,-500.0,0.00013698,2]
[333195554,1721934644173,-500.0,0.00013698,2]
[333195555,1721934644183,-500.0,0.00013698,2]
[333195556,1721934644193,-1380.43,0.00013698,2]
[333195557,1721934644202,-1356.64,0.00013698,2]
[333195558,1721934644212,-500.12511869,0.00013698,2]
[333195559,1721934644224,-5549.6,0.00013698,2]
[333195560,1721934644233,-833.67,0.00013698,2]
[333195561,1721934644242,-1552.17,0.00013698,2]
[333195562,1721934644251,-500.0,0.00013698,2]
[333195563,1721934644260,-500.0,0.00013698,2]
[333195564,1721934644270,-500.0,0.00013698,2]
[333195565,1721934644280,-717.89,0.00013698,2]
[333195566,1721934644290,-508.9687523,0.00013698,2]
[333195567,1721934644300,-500.0,0.00013698,2]
[333195568,1721934644310,-6958.47,0.00013698,2]
[333195569,1721934644320,-522.69,0.00013698,2]
[333195570,1721934644329,-500.0,0.00013698,2]
[333195571,1721934644339,-500.0,0.00013698,2]
[333195572,1721934644349,-500.0,0.00013698,2]
[333195573,1721934644359,-500.0,0.00013698,2]
[333195574,1721934644368,-500.0,0.00013698,2]
[333195575,1721934644378,-500.0,0.00013698,2]
[333195576,1721934644388,-500.0,0.00013698,2]
[333195577,1721934644397,-500.0,0.00013698,2]
[333195578,1721934644407,-500.0,0.00013698,2]
[333195579,1721934644417,-500.0,0.00013698,2]
[333195580,1721934644427,-736.61,0.00013698,2]
[333195581,1721934644437,-500.0,0.00013698,2]
[333195582,1721934644447,-500.0,0.00013698,2]
[333195583,1721934644457,-500.0,0.00013698,2]
[333195584,1721934644466,-795.62,0.00013698,2]
[333195585,1721934644480,-893.77,0.00013698,2]
[333195586,1721934644489,-500.0,0.00013698,2]
[333195587,1721934644500,-500.0,0.00013698,2]
[333195588,1721934644509,-596.74426326,0.00013698,2]
[333195589,1721934644518,-538.25,0.00013698,2]
[333195590,1721934644527,-1140.47,0.00013698,2]
[333195591,1721934644537,-500.0,0.00013698,2]
[333195592,1721934644546,-784.66,0.00013698,2]
[333195593,1721934644555,-500.0,0.00013698,2]
[333195594,1721934644566,-1469.84,0.00013698,2]
[333195595,1721934644576,-713.04,0.00013698,2]
[333195596,1721934644585,-500.0,0.00013698,2]
[333195597,1721934644594,-190.69555482,0.00013698,2]
[333195598,1721934644604,-500.0,0.00013698,2]
[333195599,1721934644613,-4039.0,0.00013698,2]
[333195600,1721934644622,-500.0,0.00013698,2]
[333195601,1721934644632,-2580.28,0.00013698,2]
[333195602,1721934644641,-500.0,0.00013698,2]
[333195603,1721934644650,-500.0,0.00013698,2]
[333195604,1721934644660,-596.35,0.00013698,2]
[333195605,1721934644669,-506.05334032,0.00013698,2]
[333195606,1721934644679,-500.0,0.00013698,2]
[333195607,1721934644688,-500.0,0.00013698,2]
[333195608,1721934644698,-500.0,0.00013698,2]
[333195609,1721934644708,-629.34,0.00013698,2]
[333195610,1721934644721,-1267.91,0.00013698,2]
[333195611,1721934644731,-919.97,0.00013698,2]
[333195612,1721934644740,-513.88,0.00013698,2]
[333195613,1721934644750,-509.52484462,0.00013698,2]
[333195614,1721934644759,-500.0,0.00013698,2]
[333195615,1721934644769,-500.0,0.00013698,2]
[333195616,1721934644778,-1253.36,0.00013698,2]
[333195617,1721934644788,-500.0,0.00013698,2]
[333195618,1721934644798,-500.0,0.00013698,2]
[333195619,1721934644808,-500.0,0.00013698,2]
[333195620,1721934644817,-500.0,0.00013698,2]
[333195621,1721934644827,-500.0,0.00013698,2]
[333195622,1721934644837,-500.0,0.00013698,2]
[333195623,1721934644847,-500.0,0.00013698,2]
[333195624,1721934644856,-1412.76,0.00013698,2]
[333195625,1721934644866,-500.0,0.00013698,2]
[333195626,1721934644876,-729.72,0.00013698,2]
[333195627,1721934644885,-500.0,0.00013698,2]
[333195628,1721934644897,-1400.1,0.00013698,2]
[333195629,1721934644907,-500.0,0.00013698,2]
[333195630,1721934644916,-2149.94,0.00013698,2]
[333195631,1721934644926,-500.0,0.00013698,2]
[333195632,1721934644935,-500.0,0.00013698,2]
[333195633,1721934644946,-507.68478184,0.00013698,2]
[333195634,1721934644955,-1001.5,0.00013698,2]
[333195635,1721934644965,-500.0,0.00013698,2]
[333195636,1721934644978,-500.0,0.00013698,2]
[333195637,1721934644990,-752.54,0.00013698,2]
[333195638,1721934645001,-500.0,0.00013698,2]
[333195639,1721934645011,-539.44620326,0.00013698,2]
[333195640,1721934645021,-297.40496233,0.00013698,2]
[333195641,1721934645030,-500.0,0.00013698,2]
[333195642,1721934645039,-774.15,0.00013698,2]
[333195643,1721934645049,-500.0,0.00013698,2]
[333195644,1721934645058,-500.0,0.00013698,2]
[333195645,1721934645067,-1129.95,0.00013698,2]
[333195646,1721934645077,-500.0,0.00013698,2]
[333195647,1721934645086,-500.0,0.00013698,2]
[333195648,1721934645095,-2342.84,0.00013698,2]
[333195649,1721934645105,-415.99363718,0.00013698,2]
[333195650,1721934645114,-500.0,0.00013698,2]
[333195651,1721934645124,-500.0,0.00013698,2]
[333195652,1721934645133,-500.0,0.00013698,2]
[333195653,1721934645142,-500.0,0.00013698,2]
[333195654,1721934645152,-500.0,0.00013698,2]
[333195655,1721934645161,-500.0,0.00013698,2]
[333195656,1721934645171,-500.0,0.00013698,2]
[333195657,1721934645180,-500.0,0.00013698,2]
[333195658,1721934645190,-500.0,0.00013698,2]
[333195659,1721934645199,-500.0,0.00013698,2]
[333195660,1721934645209,-370.91872238,0.00013698,2]
[333195661,1721934645221,-500.0,0.00013698,2]
[333195662,1721934645230,-500.0,0.00013698,2]
[333195663,1721934645239,-500.0,0.00013698,2]
[333195664,1721934645249,-1005.88,0.00013698,2]
[333195665,1721934645258,-379.3893993,0.00013698,2]
[333195666,1721934645268,-500.0,0.00013698,2]
[333195667,1721934645278,-271.77931704,0.00013698,2]
[333195668,1721934645287,-500.0,0.00013698,2]
[333195669,1721934645297,-500.0,0.00013698,2]
[333195670,1721934645307,-500.0,0.00013698,2]
[333195671,1721934645317,-500.0,0.00013698,2]
[333195672,1721934645327,-500.0,0.00013698,2]
[333195673,1721934645336,-500.0,0.00013698,2]
[333195674,1721934645346,-500.0,0.00013698,2]
[333195675,1721934645356,-500.0,0.00013698,2]
[333195676,1721934645365,-500.0,0.00013698,2]
[333195677,1721934645376,-500.0,0.00013698,2]
[333195678,1721934645386,-500.0,0.00013698,2]
[333195679,1721934645395,-500.0,0.00013698,2]
[333195680,1721934645405,-500.0,0.00013698,2]
[333195681,1721934645414,-271.17802,0.00013699,2]
[333195682,1721934645424,-3000.0,0.00013699,2]
[333195683,1721934645433,-153.0,0.00013699,2]
[333195684,1721934645444,-5306.88604622,0.00013935,2]
[333195685,1721934645454,-500.0,0.00013961,2]
[333195686,1721934645463,-604.47,0.00013961,2]
[333195687,1721934645476,-604.47,0.00013961,2]
[333195688,1721934645485,-604.47,0.00013971,2]
[333195689,1721934645495,-604.47,0.00013971,2]
[333195690,1721934645504,-604.47,0.00013971,2]
[333195691,1721934645515,-604.47,0.00013971,2]
[333195692,1721934645524,-604.47,0.00013971,2]
[333195693,1721934645534,-604.55,0.00013971,2]
[333195694,1721934645544,-151.0,0.00013972,2]
[333195695,1721934645553,-165.87362994,0.00013972,2]
[333195696,1721934645562,-154.72922386,0.00013972,2]
[333195697,1721934645572,-447.86449664,0.00013972,2]
[333195698,1721934645581,-500.0,0.00013972,2]
[333195699,1721934645591,-500.0,0.00013972,2]
[333195700,1721934645601,-518.66,0.00013972,2]
[333195701,1721934645610,-500.0,0.00013972,2]
[333195702,1721934645620,-500.0,0.00013972,2]
[333195703,1721934645630,-500.0,0.00013972,2]
[333195704,1721934645640,-500.0,0.00013972,2]
[333195705,1721934645650,-500.0,0.00013972,2]
[333195706,1721934645660,-500.0,0.00013972,2]
[333195707,1721934645670,-507.95388418,0.00013972,2]
[333195708,1721934645679,-500.0,0.00013972,2]
[333195709,1721934645690,-500.0,0.00013972,2]
[333195710,1721934645698,-500.0,0.00013972,2]
[333195711,1721934645707,-500.0,0.00013972,2]
[333195712,1721934645717,-500.0,0.00013972,2]
[333195713,1721934645731,-500.0,0.00013972,2]
[333195714,1721934645740,-500.0,0.00013972,2]
[333195715,1721934645754,-500.0,0.00013972,2]
[333195716,1721934645767,-500.0,0.00013972,2]
[333195717,1721934645780,-500.0,0.00013972,2]
[333195718,1721934645792,-500.0,0.00013972,2]
[333195719,1721934645805,-500.0,0.00013972,2]
[333195720,1721934645816,-500.0,0.00013972,2]
[333195721,1721934645828,-548.93970925,0.00013972,2]
[333195722,1721934645840,-500.0,0.00013972,2]
[333195723,1721934645853,-573.72,0.00013972,2]
[333195724,1721934645865,-500.0,0.00013972,2]
[333195725,1721934645877,-500.0,0.00013972,2]
[333195726,1721934645892,-500.0,0.00013972,2]
[333195727,1721934645905,-500.0,0.00013972,2]
[333195728,1721934645918,-1131.76,0.00013972,2]
[333195729,1721934645931,-500.0,0.00013972,2]
[333195731,1721934645945,-500.0,0.00013972,2]
[333195733,1721934645957,-336.50403891,0.00013972,2]
[333195735,1721934645971,-500.0,0.00013972,2]
[333195737,1721934645982,-500.0,0.00013972,2]
[333195739,1721934645994,-1054.27,0.00013972,2]
[333195741,1721934646006,-1591.37,0.00013972,2]
[333195742,1721934646019,-479.69891375,0.00013972,2]
[333195815,1721934646828,-43.95108625,0.00013972,2]
[333195816,1721934646839,-469.52063947,0.00013972,2]
[333195817,1721934646851,-457.09156849,0.00013972,2]
[333195818,1721934646866,-42.90843151,0.00013972,2]
[333195819,1721934646877,-500.0,0.00013972,2]
[333195820,1721934646889,-79.29156849,0.00013972,2]
[333195821,1721934646904,-420.70843151,0.00013972,2]
[333195822,1721934646915,-500.0,0.00013972,2]
[333195823,1721934646926,-273.03,0.00013972,2]
[333195824,1721934646939,-500.0,0.00013972,2]
[333195825,1721934646950,-500.0,0.00013972,2]
[333195826,1721934646960,-500.0,0.00013972,2]
[333195827,1721934646974,-500.0,0.00013972,2]
[333195828,1721934646986,-500.0,0.00013972,2]
[333195829,1721934646997,-500.0,0.00013972,2]
[333195830,1721934647008,-981.37,0.00013972,2]
[333195831,1721934647019,-500.0,0.00013972,2]
[333195832,1721934647030,-183.34916849,0.00013972,2]
[333195833,1721934647495,-383.74083151,0.00013972,2]
[333195834,1721934647508,-500.0,0.00013972,2]
[333195835,1721934647520,-500.0,0.00013972,2]
[333195836,1721934647531,-500.0,0.00013972,2]
[333195837,1721934647543,-504.49189868,0.00013972,2]
[333195838,1721934647555,-500.0,0.00013972,2]
[333195839,1721934647567,-500.0,0.00013972,2]
[333195840,1721934647578,-500.0,0.00013972,2]
[333195841,1721934647591,-593.71,0.00013972,2]
[333195842,1721934647603,-512.69017185,0.00013972,2]
[333195843,1721934647615,-198.95742366,0.00013972,2]
[333195844,1721934647774,273.37336231,9.9e-05,2]
[333195845,1721934647909,-301.04257634,0.00013972,2]
[333195846,1721934647918,-334.55742366,0.00013972,2]
[333195851,1721935210499,-273.37336231,9.703e-05,2]
[333195852,1721935210538,-240.52034027,9.999e-05,2]
[333195853,1721935210573,-567.90034915,9.999e-05,2]
[333195854,1721935210609,-778.99945191,9.999e-05,2]
[333195855,1721935212866,273.37336231,9.606e-05,2]
[333195856,1721935221330,273.37336231,9.9e-05,2]
[333195857,1721935229536,273.37336231,9.9e-05,2]
[333195858,1721935237415,273.37336231,9.9e-05,2]
[333195859,1721935246298,273.37336231,9.9e-05,2]
[333195860,1721935254191,273.37336231,9.9e-05,2]
[333195861,1721935262904,273.37336231,9.9e-05,2]
[333195862,1721935271652,273.37336231,9.9e-05,2]
[333195863,1721935280834,273.37336231,9.9e-05,2]
[333195864,1721935288683,273.37336231,9.9e-05,2]
[333195865,1721935298050,273.37336231,9.9e-05,2]
[333195866,1721935306388,273.37336231,9.9e-05,2]
[333195867,1721935315129,273.37336231,9.9e-05,2]
[333195868,1721935323192,729.57784597,9.899e-05,2]
[333195871,1721935443831,273.37336231,9.899e-05,2]
[333195874,1721935570492,-778.74462081,9.999e-05,2]
[333195875,1721935570520,-675.66059976,9.999e-05,2]
[333195876,1721935570543,-156.68383461,9.999e-05,2]
[333195877,1721935570569,-160.02872969,9.999e-05,2]
[333195878,1721935570592,-600.34409866,9.999e-05,2]
[333195879,1721935570616,-156.59792059,9.999e-05,2]
[333195880,1721935570640,-350.77118343,9.999e-05,2]
[333195883,1721935597142,339.52534615,9.999e-05,2]
[333195884,1721935617118,-156.54807141,0.00011999,2]
[333195885,1721935617145,-143.46065744,0.00011999,2]
[333195886,1721935648409,-310.18037484,9.999e-05,2]
[333195902,1721935832481,-600.34409866,9.999e-05,2]
[333195904,1721935832491,-159.97889909,9.999e-05,2]
[333195906,1721935832501,-248.87416602,9.999e-05,2]
[333195908,1721935832510,-248.87416602,9.999e-05,2]
[333195910,1721935832519,-287.0,0.00011718,2]
[333195912,1721935832529,-9438.1366086,0.00011719,2]
[333196076,1721935838631,-2583.26638813,0.00011719,2]
[333196077,1721935838643,-12878.59700327,0.00011719,2]
[333196078,1721935838653,-250.0,0.00012539,2]
[333196079,1721935838663,-250.0,0.00012573,2]
[333196080,1721935838674,-250.0,0.00012607,2]
[333196081,1721935838684,-250.0,0.00012642,2]
[333196082,1721935838693,-250.0,0.00012676,2]
[333196083,1721935838703,-250.0,0.0001271,2]
[333196084,1721935838712,-250.0,0.00012745,2]
[333196085,1721935838724,-250.0,0.00012779,2]
[333196086,1721935838734,-250.0,0.00012814,2]
[333196087,1721935838744,-250.0,0.00012848,2]
[333196088,1721935838755,-250.0,0.00012882,2]
[333196089,1721935838766,-250.0,0.00012917,2]
[333196090,1721935838777,-2017.07972683,0.0001292,2]
[333196091,1721935838788,-250.0,0.00012951,2]
[333196092,1721935838800,-250.0,0.00012986,2]
[333196093,1721935838811,-4499.99999901,0.00012997,2]
[333196094,1721935838821,-250.0,0.0001302,2]
[333196095,1721935838831,-250.0,0.00013054,2]
[333196096,1721935838842,-250.0,0.00013089,2]
[333196097,1721935838853,-250.0,0.00013123,2]
[333196098,1721935838865,-250.0,0.00013157,2]
[333196099,1721935838876,-250.0,0.00013192,2]
[333196100,1721935838888,-4842.04297654,0.000132,2]
[333196101,1721935838898,-200.0,0.00013425,2]
[333196102,1721935838909,-216.058348,0.00013588,2]
[333196103,1721935838921,-151.951543,0.00013588,2]
[333196104,1721935838931,-1245.26467162,0.00013588,2]
[333196105,1721935838942,-1190.66426037,0.00013598,2]
[333196106,1721935838953,-5082.083116,0.000136,2]
[333196107,1721935838966,-362017.786499,0.00013688,2]
[333196108,1721935838977,-2159.85,0.00013698,2]
[333196109,1721935838987,-2159.85,0.00013698,2]
[333196110,1721935838997,-2159.85,0.00013698,2]
[333196111,1721935839007,-2159.85,0.00013698,2]
[333196112,1721935839018,-2159.85,0.00013698,2]
[333196113,1721935839028,-2159.85,0.00013698,2]
[333196114,1721935839039,-2159.85,0.00013698,2]
[333196115,1721935839050,-2159.85,0.00013698,2]
[333196116,1721935839061,-2159.85,0.00013698,2]
[333196117,1721935839072,-2159.85,0.00013698,2]
[333196118,1721935839083,-2159.85,0.00013698,2]
[333196119,1721935839094,-2159.85,0.00013698,2]
[333196120,1721935839103,-2159.85,0.00013698,2]
[333196121,1721935839114,-2159.85,0.00013698,2]
[333196122,1721935839125,-2159.85,0.00013698,2]
[333196123,1721935839135,-2159.85,0.00013698,2]
[333196124,1721935839145,-2159.85,0.00013698,2]
[333196125,1721935839156,-2159.85,0.00013698,2]
[333196126,1721935839169,-2159.85,0.00013698,2]
[333196127,1721935839180,-2159.85,0.00013698,2]
[333196128,1721935839195,-2159.85,0.00013698,2]
[333196129,1721935839207,-2159.85,0.00013698,2]
[333196130,1721935839219,-2159.85,0.00013698,2]
[333196131,1721935839230,-2159.85,0.00013698,2]
[333196132,1721935839240,-500.0,0.00013698,2]
[333196133,1721935839249,-500.0,0.00013698,2]
[333196134,1721935839260,-501.54052837,0.00013698,2]
[333196135,1721935839274,-500.0,0.00013698,2]
[333196136,1721935839284,-500.0,0.00013698,2]
[333196137,1721935839294,-500.0,0.00013698,2]
[333196138,1721935839303,-500.0,0.00013698,2]
[333196139,1721935839313,-519.83,0.00013698,2]
[333196140,1721935839324,-500.0,0.00013698,2]
[333196141,1721935839334,-500.0,0.00013698,2]
[333196142,1721935839344,-500.0,0.00013698,2]
[333196143,1721935839354,-500.0,0.00013698,2]
[333196144,1721935839364,-830.99,0.00013698,2]
[333196145,1721935839373,-511.47491556,0.00013698,2]
[333196146,1721935839383,-544.23,0.00013698,2]
[333196147,1721935839393,-500.0,0.00013698,2]
[333196148,1721935839403,-500.0,0.00013698,2]
[333196149,1721935839412,-500.0,0.00013698,2]
[333196150,1721935839422,-500.0,0.00013698,2]
[333196151,1721935839431,-502.92560103,0.00013698,2]
[333196152,1721935839441,-519.39971363,0.00013698,2]
[333196153,1721935839451,-500.0,0.00013698,2]
[333196154,1721935839461,-500.0,0.00013698,2]
[333196155,1721935839474,-500.0,0.00013698,2]
[333196156,1721935839484,-624.27,0.00013698,2]
[333196157,1721935839494,-500.0,0.00013698,2]
[333196158,1721935839504,-500.0,0.00013698,2]
[333196159,1721935839514,-500.0,0.00013698,2]
[333196160,1721935839524,-601.45,0.00013698,2]
[333196161,1721935839533,-974.69,0.00013698,2]
[333196162,1721935839543,-500.0,0.00013698,2]
[333196163,1721935839553,-707.31,0.00013698,2]
[333196164,1721935839563,-1525.06,0.00013698,2]
[333196165,1721935839572,-500.0,0.00013698,2]
[333196166,1721935839582,-500.0,0.00013698,2]
[333196167,1721935839592,-1010.34,0.00013698,2]
[333196168,1721935839601,-500.0,0.00013698,2]
[333196169,1721935839611,-500.0,0.00013698,2]
[333196170,1721935839621,-500.0,0.00013698,2]
[333196171,1721935839630,-500.0,0.00013698,2]
[333196172,1721935839640,-1005.88,0.00013698,2]
[333196173,1721935839650,-500.0,0.00013698,2]
[333196174,1721935839660,-500.0,0.00013698,2]
[333196175,1721935839670,-500.0,0.00013698,2]
[333196176,1721935839680,-500.0,0.00013698,2]
[333196177,1721935839690,-500.0,0.00013698,2]
[333196178,1721935839700,-500.0,0.00013698,2]
[333196179,1721935839709,-540.80979149,0.00013698,2]
[333196180,1721935839721,-503.93225912,0.00013698,2]
[333196181,1721935839731,-899.59,0.00013698,2]
[333196182,1721935839742,-872.87,0.00013698,2]
[333196183,1721935839752,-500.0,0.00013698,2]
[333196184,1721935839762,-701.35,0.00013698,2]
[333196185,1721935839772,-709.54,0.00013698,2]
[333196186,1721935839781,-500.0,0.00013698,2]
[333196187,1721935839791,-579.32,0.00013698,2]
[333196188,1721935839801,-916.09,0.00013698,2]
[333196189,1721935839811,-500.0,0.00013698,2]
[333196190,1721935839820,-588.39,0.00013698,2]
[333196191,1721935839830,-500.0,0.00013698,2]
[333196192,1721935839840,-595.19,0.00013698,2]
[333196193,1721935839850,-500.0,0.00013698,2]
[333196194,1721935839860,-500.0,0.00013698,2]
[333196195,1721935839870,-500.0,0.00013698,2]
[333196196,1721935839880,-655.94,0.00013698,2]
[333196197,1721935839890,-500.0,0.00013698,2]
[333196198,1721935839899,-188.00441452,0.00013698,2]
[333196199,1721935839915,-753.94558548,0.00013698,2]
[333196200,1721935839924,-765.7588574,0.00013698,2]
[333196202,1721935840136,-336.8611426,0.00013698,2]